bitfinex/quotes_ETHUSD_20240925
["timestamp","ask_amount","ask_price","bid_price","bid_amount"]
[1727267747536,3.92526203,2627.4,2627.2,0.0003884]
[1727267748493,0.11921203,2627.4,2627.2,0.0003884]
[1727267754541,1.71123752,2627.4,2627.2,0.0003884]
[1727267759218,1.59202549,2627.3,2627.2,0.0003884]
[1727267759755,1.71086325,2627.3,2627.2,0.0003884]
[1727267760969,0.11883776,2627.3,2627.2,5.9134759]
[1727267761167,0.11883776,2627.3,2627.2,9.50959181]
[1727267761346,0.11883776,2627.3,2627.2,7.24801788]
[1727267761553,0.11883776,2627.3,2627.2,10.30574269]
[1727267761850,1.59202549,2627.8,2627.4,3.80591]
[1727267762015,1.59202549,2627.8,2627.5,5.1070375]
[1727267762211,1.59202549,2627.8,2627.5,5.9513825]
[1727267762457,1.59202549,2627.8,2627.6,0.7521]
[1727267762631,3.8054,2627.9,2627.6,0.7521]
[1727267762632,5.39742549,2627.9,2627.6,0.7521]
[1727267762828,0.11903484,2627.7,2627.6,0.7521]
[1727267763044,0.11903484,2627.7,2627.6,1.430059]
[1727267763822,5.39742549,2627.9,2627.6,1.430059]
[1727267764018,0.11519861,2627.7,2627.6,0.7521]
[1727267764545,5.39742549,2627.9,2627.6,0.7521]
[1727267764759,0.11519861,2627.7,2627.6,0.7521]
[1727267764956,5.39742549,2627.9,2627.6,0.7521]
[1727267765160,0.11519861,2627.7,2627.6,0.7521]
[1727267765366,5.39742549,2627.9,2627.6,0.7521]
[1727267765656,0.11519861,2627.7,2627.6,1.3456245]
[1727267766025,5.39742549,2627.9,2627.6,1.3456245]
[1727267766364,5.39742549,2627.9,2627.6,0.7521]
[1727267766543,0.11523488,2627.8,2627.6,0.7521]
[1727267770477,0.11523488,2627.8,2627.7,1.3011575]
[1727267771543,0.11523488,2627.8,2627.6,0.7521]
[1727267774989,0.11523488,2627.8,2627.7,1.3011575]
[1727267780117,0.11523488,2627.8,2627.7,1.88706525]
[1727267780321,0.11523488,2627.8,2627.7,5.97136499]
[1727267780505,1.59202549,2628.7,2628.4,3.80451]
[1727267780815,3.80394,2628.9,2628.6,1.3011575]
[1727267781023,3.80394,2628.9,2628.8,1.3011575]
[1727267781196,3.80394,2628.9,2628.6,1.3011575]
[1727267781197,3.8041,2628.8,2628.6,1.3011575]
[1727267781392,3.8041,2628.8,2628.3,0.7885]
[1727267781393,3.80417,2628.7,2628.3,0.7885]
[1727267781723,3.80438,2628.6,2628.1,3.80494]
[1727267782701,0.7954,2628.4,2628.0,5.8948075]
[1727267782904,4.60002,2628.4,2628.0,0.7885]
[1727267783147,0.10715722,2628.3,2628.0,0.7885]
[1727267785883,0.10715722,2628.3,2627.9,3.8052]
[1727267786211,0.10715722,2628.3,2628.0,3.80515]
[1727267788115,0.10715722,2628.3,2627.9,5.1063575]
[1727267788116,0.10715722,2628.3,2627.9,7.61043]
[1727267788680,0.10715722,2628.3,2627.9,3.8052]
[1727267788885,0.10715722,2628.3,2628.0,5.1063175]
[1727267790104,0.10715722,2628.3,2628.0,3.80516]
[1727267790312,3.91191722,2628.3,2627.9,3.8052]
[1727267791018,0.10715722,2628.3,2627.9,3.8052]
[1727267792486,0.10715722,2628.3,2627.9,7.61042]
[1727267792690,0.10715722,2628.3,2627.9,3.8052]
[1727267794345,0.10715722,2628.3,2628.0,3.8051]
[1727267796851,0.10715722,2628.3,2628.0,5.1062575]
[1727267796991,0.10715722,2628.3,2628.0,1.3011575]
[1727267797194,4.76312394,2628.3,2627.8,5.8628275]
[1727267797395,3.80516,2628.1,2627.5,3.80582]
[1727267797597,0.7622,2628.0,2627.5,3.80582]
[1727267797798,0.86921705,2628.0,2627.5,3.80582]
[1727267798207,1.34190772,2628.0,2627.5,3.80582]
[1727267798419,1.34190772,2628.0,2627.4,12.5071175]
[1727267798420,3.8054,2627.9,2627.4,12.5071175]
[1727267798624,3.91244479,2627.9,2627.4,12.5071175]
[1727267798862,3.91244479,2627.9,2627.4,12.5070975]
[1727267799065,3.91244479,2627.9,2627.5,3.80589]
[1727267799262,0.10704479,2627.9,2627.5,3.80589]
[1727267799463,0.10704479,2627.9,2627.6,3.80573]
[1727267802585,0.10704479,2627.9,2627.6,5.1068875]
[1727267804090,0.06904479,2627.9,2627.6,5.1068875]
[1727267804291,0.10555336,2627.9,2627.6,5.1068875]
[1727267805593,0.10555336,2627.9,2627.7,3.80557]
[1727267807014,0.10555336,2627.9,2627.6,5.1068875]
[1727267809980,0.10555336,2627.9,2627.7,3.80552]
[1727267813304,0.10555336,2627.9,2627.7,3.80559]
[1727267815623,0.10555336,2627.9,2627.6,1.3011575]
[1727267815793,0.10555336,2627.9,2627.6,5.1068475]
[1727267818211,0.10555336,2627.9,2627.6,3.80569]
[1727267820504,3.8059,2627.5,2627.0,15.01771]
[1727267820816,0.7768,2627.4,2627.0,3.80656]
[1727267821040,0.7768,2627.4,2627.0,4.72358177]
[1727267821041,4.68796536,2627.4,2627.0,4.72358177]
[1727267821839,0.88191536,2627.4,2627.0,8.53014177]
[1727267822214,0.88191536,2627.4,2627.1,3.80645]
[1727267822604,0.88191536,2627.4,2627.0,9.83128927]
[1727267823109,0.88191536,2627.4,2627.1,3.80646]
[1727267823508,0.88191536,2627.4,2627.0,5.98672927]
[1727267823747,0.88191536,2627.4,2627.0,8.9142475]
[1727267823910,0.88191536,2627.4,2627.0,5.1076975]
[1727267824739,0.88191536,2627.4,2627.0,8.9142475]
[1727267825147,4.68795536,2627.4,2627.0,5.1076975]
[1727267825728,0.88191536,2627.4,2627.0,8.9142275]
[1727267826038,0.88191536,2627.4,2627.0,8.9142375]
[1727267826242,0.88191536,2627.4,2627.0,5.1076875]
[1727267826418,0.8012,2627.3,2627.0,3.80653]
[1727267826620,0.10366723,2627.2,2627.0,3.80653]
[1727267826807,0.8012,2627.3,2627.0,3.80653]
[1727267827004,0.10366723,2627.2,2627.0,3.80653]
[1727267827205,0.8012,2627.3,2627.0,3.80653]
[1727267827436,0.10366723,2627.2,2627.0,3.80653]
[1727267827937,0.8012,2627.3,2626.9,8.1078375]
[1727267828162,0.10007806,2627.1,2626.9,8.1078375]
[1727267828453,0.10004178,2627.0,2626.9,8.1078375]
[1727267828833,0.8012,2627.3,2626.9,8.1078375]
[1727267829034,0.8012,2627.3,2627.1,1.3011575]
[1727267831812,0.1001293,2627.2,2627.1,1.3011575]
[1727267832143,0.8012,2627.3,2626.9,9.37691225]
[1727267832342,0.1001293,2627.2,2626.9,9.37691225]
[1727267832751,0.8012,2627.3,2626.9,9.37691225]
[1727267832928,0.10009302,2627.1,2626.9,9.37691225]
[1727267833121,0.8012,2627.3,2626.8,3.80681]
[1727267833122,4.60748,2627.3,2626.8,3.80681]
[1727267833429,4.56838,2626.8,2626.5,7.4]
[1727267833744,4.56838,2626.8,2626.4,0.0387768]
[1727267833745,4.74442414,2626.7,2626.4,0.0387768]
[1727267833955,3.90689514,2626.7,2626.4,0.0387768]
[1727267834721,0.09981514,2626.7,2626.5,3.80734]
[1727267834938,0.09981514,2626.7,2626.4,0.0387768]
[1727267835253,0.09965618,2626.6,2626.4,3.8462568]
[1727267835623,0.7614,2626.8,2626.4,3.8462568]
[1727267835818,0.09969246,2626.7,2626.4,3.8462568]
[1727267836023,0.7614,2626.8,2626.4,5.1474143]
[1727267836234,0.09964759,2626.7,2626.4,5.1474143]
[1727267836421,0.7614,2626.8,2626.6,1.3011575]
[1727267836623,0.09964759,2626.7,2626.6,1.3011575]
[1727267836923,0.7614,2626.8,2626.6,1.3011575]
[1727267837123,0.09964759,2626.7,2626.6,1.3011575]
[1727267837542,0.7614,2626.8,2626.6,1.3011575]
[1727267837747,0.09964759,2626.7,2626.6,1.3011575]
[1727267837972,0.09964759,2626.7,2626.6,6.45683832]
[1727267838127,0.7901,2627.1,2626.6,2.64963316]
[1727267838465,0.7901,2627.4,2627.0,5.1076775]
[1727267838974,0.09959168,2627.3,2627.0,5.1076775]
[1727267839262,0.09959168,2627.3,2627.2,1.3011575]
[1727267840367,0.09959168,2627.3,2627.1,3.80644]
[1727267840947,0.09959168,2627.3,2627.1,0.75246735]
[1727267841144,0.09959168,2627.3,2627.1,4.55893735]
[1727267841443,0.7555,2627.5,2627.1,4.55880735]
[1727267842185,0.7555,2627.5,2627.1,8.36516735]
[1727267842675,0.09995485,2627.4,2627.2,3.80632]
[1727267842983,0.09995485,2627.4,2627.1,8.36516735]
[1727267843146,0.09995485,2627.4,2627.2,5.00703771]
[1727267844756,0.09995485,2627.4,2627.3,3.80618]
[1727267844968,0.09995485,2627.4,2627.3,3.8822977]
[1727267845213,4.62299,2627.9,2627.4,0.7988]
[1727267845340,4.62299,2627.9,2627.4,7.43025977]
[1727267845545,4.62299,2627.9,2627.4,7.50637334]
[1727267845779,4.62299,2627.9,2627.4,3.62430977]
[1727267846005,3.80548,2627.8,2627.4,3.62430977]
[1727267846158,3.80566,2627.7,2627.4,0.7988]
[1727267846479,0.09635606,2627.6,2627.2,7.43055977]
[1727267846641,0.09635606,2627.6,2627.2,8.55425275]
[1727267847697,0.8176,2627.5,2626.7,0.7988]
[1727267847912,3.80643,2627.2,2626.5,7.4]
[1727267848084,4.62462,2626.8,2626.4,0.8375768]
[1727267848267,3.80713,2626.7,2626.4,0.8375768]
[1727267848473,3.8999419,2626.7,2626.4,0.8375768]
[1727267848676,0.0928119,2626.7,2626.4,0.8375768]
[1727267849106,0.8176,2626.8,2626.4,0.8375768]
[1727267849107,4.62452,2626.8,2626.4,0.8375768]
[1727267849322,0.09316742,2626.6,2626.4,0.8375768]
[1727267849477,4.62452,2626.8,2626.4,0.8375768]
[1727267849677,0.09313113,2626.5,2626.4,0.8375768]
[1727267849887,4.62452,2626.8,2626.4,0.8375768]
[1727267850115,0.09313113,2626.5,2626.4,0.8375768]
[1727267850286,3.80715,2626.7,2626.4,0.0387768]
[1727267850490,0.09313113,2626.5,2626.4,0.0387768]
[1727267850802,8.43155,2626.8,2626.4,0.0387768]
[1727267851122,8.43153,2626.8,2626.4,0.0387768]
[1727267851310,0.09320371,2626.7,2626.4,0.0387768]
[1727267851673,4.62452,2626.8,2626.4,0.0387768]
[1727267851888,0.09316742,2626.6,2626.4,0.0387768]
[1727267852081,8.43152,2626.8,2626.4,0.0387768]
[1727267852291,0.09313113,2626.5,2626.4,0.0387768]
[1727267852612,4.62452,2626.8,2626.4,0.0387768]
[1727267853076,0.09320371,2626.7,2626.4,0.0387768]
[1727267853503,4.62452,2626.8,2626.4,0.0387768]
[1727267853675,0.09316742,2626.6,2626.4,0.0387768]
[1727267853876,4.62452,2626.8,2626.4,0.0387768]
[1727267854121,0.09313113,2626.5,2626.4,0.0387768]
[1727267854277,4.62452,2626.8,2626.4,0.0387768]
[1727267854477,0.09313113,2626.5,2626.4,0.0387768]
[1727267854900,4.62452,2626.8,2626.4,0.0387768]
[1727267855104,0.09313113,2626.5,2626.4,0.0387768]
[1727267855327,3.8072,2626.6,2626.4,0.0387768]
[1727267855531,0.09272453,2626.5,2626.4,0.0387768]
[1727267857424,3.90006453,2626.5,2626.4,0.0387768]
[1727267858196,0.09272453,2626.5,2626.4,0.0387768]
[1727267858603,5.45016998,2626.5,2626.4,0.0387768]
[1727267858806,4.73199416,2626.5,2626.4,0.0387768]
[1727267859074,4.67946453,2626.5,2626.4,0.0387768]
[1727267867448,4.73199416,2626.5,2626.4,0.0387768]
[1727267870374,7.73199416,2626.5,2626.4,0.0387768]
[1727267870573,7.67946453,2626.5,2626.4,0.0387768]
[1727267873568,4.67946453,2626.5,2626.4,0.0387768]
[1727267873773,4.73199416,2626.5,2626.4,0.0387768]
[1727267879885,10.55750393,2626.5,2626.4,0.0387768]
[1727267880093,12.09699979,2626.5,2626.4,0.0387768]
[1727267880263,10.5049743,2626.5,2626.4,0.0387768]
[1727267880679,7.67946453,2626.5,2626.4,0.0387768]
[1727267880982,11.0549743,2626.5,2626.4,0.0387768]
[1727267882387,9.53528181,2626.5,2626.4,0.0387768]
[1727267887805,11.1273073,2626.5,2626.4,0.0387768]
[1727267887971,8.22946453,2626.5,2626.4,0.0387768]
[1727267888165,7.67946453,2626.5,2626.4,0.0387768]
[1727267890265,9.27149002,2626.5,2626.4,0.0387768]
[1727267891098,3.90006453,2626.5,2626.4,0.0387768]
[1727267891301,3.95259416,2626.5,2626.4,0.0387768]
[1727267893808,5.54461965,2626.5,2626.4,0.0387768]
[1727267897816,3.95259416,2626.5,2626.4,0.0387768]
[1727267898617,5.94407651,2626.5,2626.4,0.0387768]
[1727267900824,3.95259416,2626.5,2626.4,0.0387768]
[1727267901278,5.94644889,2626.5,2626.4,0.0387768]
[1727267901483,3.95259416,2626.5,2626.4,0.0387768]
[1727267904416,4.77349416,2626.5,2626.4,0.0387768]
[1727267904620,7.16663034,2626.5,2626.4,0.0387768]
[1727267905133,10.16663034,2626.5,2626.4,0.0387768]
[1727267905339,8.27096453,2626.5,2626.4,0.0387768]
[1727267910069,10.11485176,2626.5,2626.4,0.0387768]
[1727267910757,9.29395176,2626.5,2626.4,0.0387768]
[1727267912847,6.90006453,2626.5,2626.4,0.0387768]
[1727267913158,6.95259416,2626.5,2626.4,0.0387768]
[1727267918340,9.34636691,2626.5,2626.4,0.0387768]
[1727267918676,9.29383728,2626.5,2626.4,0.0387768]
[1727267919348,3.90006453,2626.5,2626.4,0.8253768]
[1727267920771,3.90006453,2626.5,2626.4,0.0387768]
[1727267921058,3.95259416,2626.5,2626.4,0.0387768]
[1727267922441,6.34636691,2626.5,2626.4,0.0387768]
[1727267922652,6.34681013,2626.5,2626.4,0.0387768]
[1727267923273,3.95259416,2626.5,2626.4,0.0387768]
[1727267923677,6.34681013,2626.5,2626.4,0.0387768]
[1727267925885,3.95259416,2626.5,2626.4,0.0387768]
[1727267929281,6.34682601,2626.5,2626.4,0.8380768]
[1727267929588,5.8954856,2626.5,2626.4,0.8380768]
[1727267929880,3.95259416,2626.5,2626.4,0.8380768]
[1727267930456,3.95259416,2626.5,2626.4,0.0387768]
[1727267930672,7.65264329,2626.5,2626.4,0.0387768]
[1727267932340,5.25841144,2626.5,2626.4,0.0387768]
[1727267932891,8.25841144,2626.5,2626.4,0.0387768]
[1727267933050,8.75588181,2626.5,2626.4,0.0387768]
[1727267933250,9.51778181,2626.5,2626.4,0.0387768]
[1727267933449,12.31091653,2626.5,2626.4,0.0387768]
[1727267938772,9.51778181,2626.5,2626.4,0.0387768]
[1727267940454,11.14892821,2626.5,2626.4,0.0387768]
[1727267941095,11.14897772,2626.5,2626.4,0.0387768]
[1727267941386,8.75588181,2626.5,2626.4,0.0387768]
[1727267942171,9.53818181,2626.5,2626.4,0.0387768]
[1727267943613,9.29376545,2626.5,2626.4,0.0387768]
[1727267943905,6.90006453,2626.5,2626.4,0.0387768]
[1727267944104,6.95259416,2626.5,2626.4,0.0387768]
[1727267944304,9.34629508,2626.5,2626.4,0.0387768]
[1727267944513,0.09272453,2626.5,2626.4,0.0387768]
[1727267944720,0.09272453,2626.5,2626.4,5.94908408]
[1727267945013,0.09272453,2626.5,2626.4,6.55160737]
[1727267945374,1.59606938,2626.9,2626.4,2.82025973]
[1727267945679,1.59606938,2627.3,2626.9,0.7943]
[1727267946015,1.59606938,2627.1,2626.9,0.7943]
[1727267946503,0.06658762,2627.0,2626.9,0.7943]
[1727267947085,1.662657,2627.0,2626.9,0.7943]
[1727267947510,1.66049237,2627.0,2626.9,0.7943]
[1727267948407,0.06658762,2627.0,2626.9,0.7943]
[1727267949909,1.66049237,2627.0,2626.5,0.7781]
[1727267950107,5.40075475,2626.9,2626.5,0.7781]
[1727267950509,0.06555306,2626.8,2626.5,0.7781]
[1727267958358,3.87247306,2626.8,2626.5,0.7781]
[1727267960761,0.06555306,2626.8,2626.5,0.7781]
[1727267960973,0.06555306,2626.8,2626.7,3.80705]
[1727267961126,0.06555306,2626.8,2626.7,6.63422678]
[1727267961332,3.8061,2627.4,2626.7,2.82717678]
[1727267961549,3.85852963,2627.5,2627.1,0.8278]
[1727267961930,0.06593128,2627.4,2627.2,3.80626]
[1727267962132,3.80577,2627.6,2627.1,8.44059]
[1727267962443,0.06612623,2627.5,2627.2,0.46342]
[1727267963649,3.87208623,2627.5,2627.2,0.46342]
[1727267964059,3.87208623,2627.5,2627.1,0.8278]
[1727267964060,3.80611,2627.4,2627.1,0.8278]
[1727267964400,3.87266674,2627.4,2626.9,3.80675]
[1727267964703,3.87266674,2627.4,2627.0,0.44701877]
[1727267964992,3.87266674,2627.4,2627.1,0.7521]
[1727267965199,7.67880674,2627.4,2627.1,0.7521]
[1727267965756,3.87266674,2627.4,2627.1,0.7521]
[1727267968898,3.80621,2627.3,2627.1,0.7521]
[1727267969090,3.87266674,2627.4,2627.1,0.7521]
[1727267969257,0.06648987,2627.2,2626.9,0.7699]
[1727267969457,3.80631,2627.3,2626.9,0.7699]
[1727267969659,0.06645359,2627.1,2626.9,0.7699]
[1727267969857,3.80631,2627.3,2626.9,1.67461677]
[1727267970085,0.0664173,2627.0,2626.9,1.67461677]
[1727267970459,3.80631,2627.3,2626.9,1.67461677]
[1727267970671,0.0664173,2627.0,2626.9,1.67461677]
[1727267970882,3.80631,2627.3,2626.9,1.67461677]
[1727267971372,0.06648987,2627.2,2626.9,1.67461677]
[1727267971698,3.80631,2627.3,2626.9,1.67461677]
[1727267971896,0.06645359,2627.1,2626.9,1.67461677]
[1727267972099,3.80631,2627.3,2626.9,1.67461677]
[1727267972702,0.06646161,2627.2,2626.9,1.67461677]
[1727267973262,3.80631,2627.3,2626.9,1.67461677]
[1727267974095,3.80631,2627.3,2626.9,0.7699]
[1727267974096,3.80643,2627.2,2626.9,0.7699]
[1727267975507,0.06646973,2627.1,2626.9,0.7699]
[1727267979803,3.87305973,2627.1,2626.9,0.7699]
[1727267980002,0.06646973,2627.1,2626.9,0.7699]
[1727267981398,3.80626,2627.3,2626.9,5.16480188]
[1727267981584,3.80626,2627.3,2626.9,0.7699]
[1727267982404,3.8059,2627.5,2627.1,0.7574]
[1727267982609,0.06591166,2627.2,2627.1,0.7574]
[1727267982807,3.8059,2627.5,2627.1,1.72494488]
[1727267983014,0.06591166,2627.2,2627.1,0.7574]
[1727267983219,3.8059,2627.5,2627.1,0.7574]
[1727267983923,0.06598422,2627.4,2627.1,0.7574]
[1727267986286,0.06598422,2627.4,2627.3,4.62958]
[1727267986489,8.79286368,2627.9,2627.4,3.80601]
[1727267986490,3.80535,2627.9,2627.4,3.80601]
[1727267986721,3.80535,2627.9,2627.5,2.12806878]
[1727267987137,4.58521,2628.1,2627.5,5.93386878]
[1727267987336,4.58521,2628.1,2627.7,1.30466878]
[1727267987520,3.80511,2628.1,2627.7,1.30466878]
[1727267987722,3.80511,2628.1,2627.8,0.8234]
[1727267988801,6.80493,2628.2,2627.8,0.8234]
[1727267989927,3.80503,2628.1,2627.8,0.8234]
[1727267990138,3.87127145,2628.1,2627.8,0.8234]
[1727267992443,7.67640145,2628.1,2627.8,0.8234]
[1727267992748,3.80518,2628.0,2627.8,0.8234]
[1727267993248,0.06613373,2627.9,2627.8,0.8234]
[1727267994010,7.61017,2628.1,2627.8,0.8234]
[1727267994339,0.06624346,2628.0,2627.8,0.8234]
[1727267994544,3.87142346,2628.0,2627.8,0.8234]
[1727267995930,3.80531,2627.9,2627.8,0.8234]
[1727267996129,3.80531,2627.9,2627.1,2.82442807]
[1727267996130,3.80548,2627.8,2627.5,0.7553]
[1727267996632,0.06607086,2627.7,2627.5,0.7553]
[1727267996847,3.80548,2627.8,2627.5,0.7553]
[1727267997086,0.06603459,2627.6,2627.5,0.7553]
[1727267997351,3.80533,2627.9,2627.5,0.7553]
[1727267997520,0.06603459,2627.6,2627.5,0.7553]
[1727267997710,3.80533,2627.9,2627.5,0.7553]
[1727267997911,0.06603459,2627.6,2627.5,0.7553]
[1727267998553,3.80554,2627.8,2627.5,0.7553]
[1727267998715,0.06604954,2627.6,2627.5,0.7553]
[1727267998923,3.80554,2627.8,2627.5,0.7553]
[1727267999530,0.06608581,2627.7,2627.5,0.7553]
[1727267999944,3.80554,2627.8,2627.5,0.7553]
[1727268000232,4.566627,2627.8,2627.5,0.7553]
[1727268000543,4.566627,2627.8,2627.2,0.7674]
[1727268000544,3.806,2627.5,2627.2,0.7674]
[1727268000875,0.06624683,2627.4,2627.2,0.7674]
[1727268001018,0.06624683,2627.4,2627.3,3.80617]
[1727268001219,3.80547,2627.8,2627.3,1.04369081]
[1727268001522,0.06634887,2627.7,2627.4,4.61033]
[1727268001750,0.06634887,2627.7,2627.4,7.43466807]
[1727268002059,3.80534,2627.9,2627.4,7.43466807]
[1727268002733,3.80534,2627.9,2627.5,3.80588]
[1727268003364,3.80534,2627.9,2627.4,7.43466807]
[1727268003564,3.80534,2627.9,2627.4,11.24062807]
[1727268003721,3.80534,2627.9,2627.4,3.62872807]
[1727268003920,0.05252963,2628.0,2627.5,3.80587]
[1727268004121,3.85770963,2628.0,2627.5,3.80581]
[1727268004317,3.85770963,2628.0,2627.4,7.43465807]
[1727268004318,3.80541,2627.9,2627.4,7.43465807]
[1727268004560,3.80541,2627.9,2627.4,8.55873288]
[1727268004735,0.06538234,2627.8,2627.4,8.55873288]
[1727268006160,0.06538234,2627.8,2627.5,3.80588]
[1727268007059,3.85770963,2628.0,2627.5,3.80588]
[1727268007267,0.06534608,2627.7,2627.5,3.80588]
[1727268007424,7.61046,2628.0,2627.5,5.04235729]
[1727268007784,3.8707486,2627.9,2627.5,3.80588]
[1727268009066,7.6761686,2627.9,2627.4,7.43475807]
[1727268009236,3.8707486,2627.9,2627.4,7.43475807]
[1727268009433,3.8707486,2627.9,2627.4,5.73441481]
[1727268009434,7.6761586,2627.9,2627.4,5.73441481]
[1727268009662,3.8707486,2627.9,2627.4,5.73441481]
[1727268010225,7.6761786,2627.9,2627.4,5.73441481]
[1727268010463,3.80549,2627.8,2627.4,5.73441481]
[1727268010825,0.0652827,2627.7,2627.4,5.73441481]
[1727268011061,3.80549,2627.8,2627.4,5.73441481]
[1727268011260,0.06522641,2627.6,2627.4,5.73441481]
[1727268011462,3.8054,2627.9,2627.4,4.61033]
[1727268011666,0.06521016,2627.5,2627.4,4.61033]
[1727268011854,3.8054,2627.9,2627.4,4.61033]
[1727268012165,0.0652051,2627.5,2627.4,4.61033]
[1727268012464,0.0652051,2627.5,2627.4,5.20175378]
[1727268012651,3.80548,2627.8,2627.4,5.20175378]
[1727268012852,0.0652051,2627.5,2627.4,4.61033]
[1727268013054,3.80548,2627.8,2627.4,4.61033]
[1727268013259,0.06518508,2627.5,2627.4,4.61033]
[1727268013461,3.80548,2627.8,2627.4,4.61033]
[1727268013647,0.06537819,2627.5,2627.4,4.61033]
[1727268013977,3.80546,2627.9,2627.4,4.61033]
[1727268014172,0.06537819,2627.5,2627.4,4.61033]
[1727268014376,3.85771963,2628.0,2627.5,5.10971775]
[1727268015751,3.85771963,2628.0,2627.6,3.80573]
[1727268017067,0.0637561,2627.9,2627.6,3.80573]
[1727268017655,0.0637561,2627.9,2627.6,7.61146]
[1727268017988,0.0637561,2627.9,2627.7,3.80552]
[1727268018345,4.63817,2628.1,2627.7,3.80552]
[1727268018551,0.06391508,2627.8,2627.7,3.80552]
[1727268018751,4.63817,2628.1,2627.7,3.80552]
[1727268018954,0.06391508,2627.8,2627.7,3.80552]
[1727268019154,4.63817,2628.1,2627.7,3.80552]
[1727268019355,0.06379216,2627.8,2627.7,3.80552]
[1727268019553,4.63817,2628.1,2627.7,3.80552]
[1727268019881,4.63817,2628.1,2627.7,4.58312]
[1727268020083,0.06379676,2628.0,2627.7,4.58312]
[1727268021453,0.06379676,2628.0,2627.7,5.55241077]
[1727268021963,3.86898676,2628.0,2627.7,1.74689077]
[1727268022170,3.80546,2627.8,2627.3,3.80609]
[1727268022361,3.80567,2627.7,2627.3,0.8211]
[1727268022563,3.80567,2627.7,2627.2,3.80633]
[1727268022564,3.86955974,2627.7,2627.2,3.80633]
[1727268023474,3.80576,2627.6,2627.2,3.80633]
[1727268023778,5.46340449,2627.7,2627.2,7.61257]
[1727268023963,0.06377235,2627.5,2627.3,3.80615]
[1727268024144,4.61946,2627.8,2627.3,3.80615]
[1727268024145,0.06380862,2627.6,2627.3,3.80615]
[1727268024369,2.40790475,2627.8,2627.5,3.80582]
[1727268024565,3.0,2627.9,2627.5,3.80582]
[1727268024769,1.59390475,2628.0,2627.7,3.80554]
[1727268024965,0.7839,2628.1,2627.7,3.80554]
[1727268024966,1.59390475,2628.2,2627.8,5.10934775]
[1727268025170,5.39871475,2628.3,2627.9,0.8028]
[1727268025956,5.39871475,2628.3,2627.9,4.60809]
[1727268026152,1.65774227,2628.2,2627.9,0.8028]
[1727268027475,5.46265227,2628.2,2627.9,0.8028]
[1727268027678,0.8104,2628.0,2627.6,3.80567]
[1727268027984,0.8104,2628.0,2627.5,4.56008]
[1727268027985,3.80533,2627.9,2627.5,4.56008]
[1727268028147,3.86924731,2627.9,2627.5,0.7543]
[1727268028355,5.46315206,2627.9,2627.5,0.7543]
[1727268028585,9.26858206,2627.9,2627.5,0.7543]
[1727268028897,5.46315206,2627.9,2627.5,0.7543]
[1727268030284,1.59390475,2627.8,2627.5,0.7543]
[1727268030672,0.06381248,2627.7,2627.5,0.7543]
[1727268031130,5.39941475,2627.8,2627.5,0.7543]
[1727268031293,0.06377621,2627.6,2627.5,0.7543]
[1727268031496,1.59390475,2627.8,2627.5,0.7543]
[1727268031675,0.06377621,2627.6,2627.5,0.7543]
[1727268031879,1.59390475,2627.8,2627.5,0.7543]
[1727268032081,0.10888726,2627.6,2627.5,0.7543]
[1727268032397,1.59390475,2627.8,2627.5,0.7543]
[1727268032598,0.1088648,2627.6,2627.5,0.7543]
[1727268032787,1.59390475,2627.8,2627.5,1.59094]
[1727268032963,0.1088648,2627.6,2627.5,1.59094]
[1727268033167,1.59390475,2627.8,2627.5,5.39682]
[1727268033665,0.10889936,2627.7,2627.5,5.39682]
[1727268034201,1.59390475,2627.8,2627.5,5.39682]
[1727268034504,0.10893605,2627.7,2627.5,5.39682]
[1727268034962,1.59390475,2627.8,2627.5,5.39682]
[1727268035163,0.1089015,2627.6,2627.5,4.56018]
[1727268035359,1.59390475,2627.8,2627.5,4.56018]
[1727268035575,0.10890863,2627.6,2627.5,4.56018]
[1727268035816,1.59390475,2627.8,2627.5,4.56018]
[1727268036020,0.10890294,2627.6,2627.5,4.56018]
[1727268036230,1.59390475,2627.8,2627.7,3.8056]
[1727268036507,6.19845066,2628.2,2627.9,3.80531]
[1727268036508,1.59390475,2628.1,2627.9,3.80531]
[1727268036678,1.59390475,2628.2,2628.0,0.761077]
[1727268036894,1.59390475,2628.2,2627.9,3.80531]
[1727268037980,1.59390475,2628.2,2628.0,3.80511]
[1727268038287,0.10538286,2628.1,2628.0,3.80511]
[1727268039434,0.10538286,2628.1,2628.0,4.84858646]
[1727268039719,1.59390475,2628.3,2628.0,4.84858646]
[1727268039921,0.1020428,2628.1,2628.0,3.80511]
[1727268040117,1.59390475,2628.3,2628.0,3.80511]
[1727268040305,0.1020428,2628.1,2628.0,3.80511]
[1727268040485,5.39850475,2628.4,2628.0,3.80511]
[1727268040685,0.1020428,2628.1,2628.0,3.80511]
[1727268040982,5.39850475,2628.4,2628.0,4.84858646]
[1727268041181,0.1020428,2628.1,2628.0,4.84858646]
[1727268041418,5.39850475,2628.4,2628.0,4.84858646]
[1727268042028,0.10214058,2628.3,2628.0,4.84858646]
[1727268043350,0.10214058,2628.3,2628.0,1.04347646]
[1727268044542,0.10214058,2628.3,2628.1,0.48487665]
[1727268047619,3.90695058,2628.3,2627.8,3.80533]
[1727268048524,3.90695058,2628.3,2627.8,7.61071]
[1727268049301,3.90695058,2628.3,2627.8,3.80533]
[1727268049515,3.80488,2628.2,2627.9,0.458833]
[1727268049728,3.80488,2628.2,2627.8,3.80533]
[1727268050448,3.8051,2628.1,2627.7,4.58859]
[1727268050743,4.6049,2628.1,2627.7,0.783]
[1727268050928,4.65742963,2628.1,2627.7,0.783]
[1727268051441,3.8052,2628.0,2627.6,7.61146]
[1727268051606,0.85232963,2628.1,2627.6,7.61146]
[1727268051807,0.85232963,2628.1,2627.7,3.8056]
[1727268051808,4.60485,2628.1,2627.7,3.8056]
[1727268052251,5.89944071,2628.3,2627.6,5.386956]
[1727268052252,6.32270533,2628.3,2627.8,4.60617]
[1727268052425,5.50090533,2628.3,2627.9,0.460617]
[1727268052945,3.90700058,2628.3,2627.8,4.60617]
[1727268053312,5.50090533,2628.3,2627.8,4.60617]
[1727268053543,5.50090533,2628.3,2627.9,3.80529]
[1727268054257,3.90700058,2628.3,2628.0,0.038]
[1727268056121,3.80491,2628.2,2628.0,0.038]
[1727268056462,0.10209186,2628.1,2628.0,0.038]
[1727268056755,7.60967,2628.3,2628.0,0.038]
[1727268056911,0.10207967,2628.1,2628.0,0.038]
[1727268057116,3.80482,2628.3,2628.0,0.038]
[1727268057452,4.61493,2628.1,2628.0,0.038]
[1727268057746,4.71699748,2628.1,2628.0,0.038]